fUST/lending_fUST_20241228
["ID","MTS","AMOUNT","RATE_DAILY","PERIOD"]
[346905291,1735355435536,-500.0,9.06e-05,2]
[346905292,1735355435546,-598.79023601,9.06e-05,2]
[346905293,1735355435555,-500.0,9.06e-05,2]
[346905294,1735355435565,-500.0,9.06e-05,2]
[346905295,1735355435575,-550.04159599,9.06e-05,2]
[346905296,1735355435585,-500.87862289,9.06e-05,2]
[346905297,1735355435595,-500.0,9.06e-05,2]
[346905298,1735355435605,-500.0,9.06e-05,2]
[346905299,1735355435615,-500.0,9.06e-05,2]
[346905300,1735355435625,-500.0,9.06e-05,2]
[346905301,1735355435735,-500.0,9.06e-05,2]
[346905302,1735355435744,-3185.2,9.06e-05,2]
[346905303,1735355435754,-500.0,9.06e-05,2]
[346905304,1735355435764,-500.0,9.06e-05,2]
[346905305,1735355435774,-500.0,9.06e-05,2]
[346905306,1735355435784,-500.0,9.06e-05,2]
[346905307,1735355435793,-500.0,9.06e-05,2]
[346905308,1735355435803,-500.0,9.06e-05,2]
[346905309,1735355435813,-500.0,9.06e-05,2]
[346905310,1735355435822,-376.59064294,9.06e-05,2]
[346905311,1735355435832,-500.0,9.06e-05,2]
[346905312,1735355435842,-500.0,9.06e-05,2]
[346905313,1735355435851,-500.0,9.06e-05,2]
[346905314,1735355435861,-500.0,9.06e-05,2]
[346905315,1735355435870,-500.41195555,9.06e-05,2]
[346905316,1735355435880,-500.0,9.06e-05,2]
[346905317,1735355435889,-500.0,9.06e-05,2]
[346905318,1735355435899,-504.28673677,9.06e-05,2]
[346905319,1735355435909,-340.6,9.06e-05,2]
[346905320,1735355435918,-500.0,9.06e-05,2]
[346905321,1735355435928,-500.56095887,9.06e-05,2]
[346905322,1735355435938,-500.0,9.06e-05,2]
[346905323,1735355435947,-500.0,9.06e-05,2]
[346905324,1735355435956,-500.0,9.06e-05,2]
[346905325,1735355435966,-155.15398278,9.06e-05,2]
[346905326,1735355435976,-500.0,9.06e-05,2]
[346905327,1735355435985,-1192.33,9.06e-05,2]
[346905328,1735355435996,-495.27978831,9.061e-05,2]
[346905329,1735355436005,-500.0,9.061e-05,2]
[346905330,1735355436015,-500.0,9.061e-05,2]
[346905331,1735355436024,-500.0,9.061e-05,2]
[346905332,1735355436034,-500.0,9.061e-05,2]
[346905333,1735355436043,-500.0,9.061e-05,2]
[346905334,1735355436052,-500.0,9.061e-05,2]
[346905335,1735355436062,-1234.63,9.061e-05,2]
[346905336,1735355436071,-1234.63,9.061e-05,2]
[346905337,1735355436082,-500.0,9.061e-05,2]
[346905338,1735355436091,-500.0,9.061e-05,2]
[346905339,1735355436101,-500.0,9.061e-05,2]
[346905340,1735355436111,-500.0,9.061e-05,2]
[346905341,1735355436121,-500.0,9.061e-05,2]
[346905342,1735355436131,-500.0,9.061e-05,2]
[346905343,1735355436140,-565.27,9.062e-05,2]
[346905344,1735355436149,-565.27,9.062e-05,2]
[346905345,1735355436160,-1234.63,9.062e-05,2]
[346905346,1735355436171,-1234.63,9.062e-05,2]
[346905347,1735355436180,-500.0,9.062e-05,2]
[346905348,1735355436190,-500.0,9.062e-05,2]
[346905349,1735355436201,-182.92065015,9.062e-05,2]
[346905350,1735355436212,-500.0,9.062e-05,2]
[346905351,1735355436222,-500.0,9.062e-05,2]
[346905352,1735355436232,-503.34514364,9.062e-05,2]
[346905353,1735355436245,-500.0,9.062e-05,2]
[346905354,1735355436255,-690.0,9.062e-05,2]
[346905355,1735355436264,-506.65341653,9.063e-05,2]
[346905356,1735355436275,-500.0,9.063e-05,2]
[346905357,1735355436284,-500.0,9.063e-05,2]
[346905358,1735355436294,-500.85763103,9.063e-05,2]
[346905359,1735355436304,-500.0,9.063e-05,2]
[346905360,1735355436313,-500.0,9.063e-05,2]
[346905361,1735355436323,-500.0,9.063e-05,2]
[346905362,1735355436333,-500.0,9.063e-05,2]
[346905363,1735355436343,-500.0,9.063e-05,2]
[346905364,1735355436353,-500.81926593,9.063e-05,2]
[346905365,1735355436362,-502.85608939,9.063e-05,2]
[346905366,1735355436372,-500.0,9.063e-05,2]
[346905367,1735355436382,-500.0,9.063e-05,2]
[346905368,1735355436392,-500.0,9.063e-05,2]
[346905369,1735355436401,-501.35376207,9.063e-05,2]
[346905370,1735355436412,-565.27,9.063e-05,2]
[346905371,1735355436422,-565.27,9.063e-05,2]
[346905372,1735355436432,-565.27,9.063e-05,2]
[346905373,1735355436442,-1234.63,9.063e-05,2]
[346905374,1735355436451,-1234.63,9.063e-05,2]
[346905375,1735355436460,-1234.63,9.063e-05,2]
[346905376,1735355436470,-1146.12,9.063e-05,2]
[346905377,1735355436479,-500.0,9.063e-05,2]
[346905378,1735355436489,-504.27090784,9.063e-05,2]
[346905379,1735355436498,-565.27,9.065e-05,2]
[346905380,1735355436508,-1234.63,9.065e-05,2]
[346905381,1735355436517,-1557.94,9.066e-05,2]
[346905382,1735355436526,-500.0,9.333e-05,2]
[346905383,1735355436535,-500.0,9.333e-05,2]
[346905384,1735355436545,-500.0,9.333e-05,2]
[346905385,1735355436554,-500.0,9.333e-05,2]
[346905386,1735355436564,-1043.35,9.333e-05,2]
[346905387,1735355436574,-851.03,9.333e-05,2]
[346905388,1735355436583,-612.57,9.333e-05,2]
[346905389,1735355436592,-500.0,9.333e-05,2]
[346905390,1735355436602,-500.0,9.333e-05,2]
[346905391,1735355436611,-352.34703712,9.333e-05,2]
[346905392,1735355436622,-190.26802524,9.333e-05,2]
[346905393,1735355436631,-500.0,9.333e-05,2]
[346905394,1735355436642,-1047.45,9.333e-05,2]
[346905395,1735355436651,-523.74,9.333e-05,2]
[346905396,1735355436661,-708.08,9.333e-05,2]
[346905397,1735355436670,-382.85650905,9.333e-05,2]
[346905398,1735355436680,-500.0,9.333e-05,2]
[346905399,1735355436689,-723.9,9.333e-05,2]
[346905400,1735355436699,-500.0,9.333e-05,2]
[346905401,1735355436709,-685.86,9.333e-05,2]
[346905402,1735355436718,-500.0,9.333e-05,2]
[346905403,1735355436727,-506.37,9.333e-05,2]
[346905404,1735355436737,-654.42,9.333e-05,2]
[346905405,1735355436746,-500.0,9.333e-05,2]
[346905406,1735355436755,-500.0,9.333e-05,2]
[346905407,1735355436765,-582.37078958,9.333e-05,2]
[346905408,1735355436775,-522.82987028,9.333e-05,2]
[346905409,1735355436784,-500.0,9.333e-05,2]
[346905410,1735355436795,-500.0,9.334e-05,2]
[346905411,1735355436804,-500.0,9.334e-05,2]
[346905412,1735355436814,-500.0,9.334e-05,2]
[346905413,1735355436824,-1951.78,9.334e-05,2]
[346905414,1735355436834,-500.0,9.334e-05,2]
[346905415,1735355436843,-500.0,9.334e-05,2]
[346905416,1735355436853,-500.0,9.334e-05,2]
[346905417,1735355436862,-500.0,9.334e-05,2]
[346905418,1735355436874,-500.0,9.334e-05,2]
[346905419,1735355436884,-500.0,9.334e-05,2]
[346905420,1735355436893,-500.0,9.334e-05,2]
[346905421,1735355436903,-500.0,9.334e-05,2]
[346905422,1735355436913,-577.25713232,9.334e-05,2]
[346905423,1735355436922,-500.0,9.334e-05,2]
[346905424,1735355436932,-500.79887901,9.334e-05,2]
[346905425,1735355436942,-500.0,9.334e-05,2]
[346905426,1735355436952,-500.0,9.334e-05,2]
[346905427,1735355436961,-500.0,9.334e-05,2]
[346905428,1735355436971,-501.80999725,9.334e-05,2]
[346905429,1735355436981,-500.0,9.334e-05,2]
[346905430,1735355436990,-500.0,9.334e-05,2]
[346905431,1735355437000,-500.0,9.334e-05,2]
[346905432,1735355437010,-641.69,9.334e-05,2]
[346905433,1735355437019,-500.0,9.334e-05,2]
[346905434,1735355437029,-500.0,9.334e-05,2]
[346905435,1735355437039,-500.0,9.334e-05,2]
[346905436,1735355437048,-497.87828049,9.334e-05,2]
[346905437,1735355437061,-500.0,9.334e-05,2]
[346905438,1735355437071,-500.0,9.334e-05,2]
[346905439,1735355437081,-502.18078475,9.334e-05,2]
[346905440,1735355437091,-473.54746695,9.334e-05,2]
[346905441,1735355437102,-500.0,9.334e-05,2]
[346905442,1735355437112,-193.41,9.334e-05,2]
[346905443,1735355437123,-500.0,9.334e-05,2]
[346905444,1735355437133,-500.0,9.334e-05,2]
[346905445,1735355437142,-500.0,9.334e-05,2]
[346905446,1735355437152,-349.83518995,9.334e-05,2]
[346905447,1735355437163,-440.2493037,9.334e-05,2]
[346905448,1735355437174,-500.0,9.334e-05,2]
[346905449,1735355437183,-500.0,9.334e-05,2]
[346905450,1735355437192,-500.0,9.334e-05,2]
[346905451,1735355437202,-504.71752733,9.334e-05,2]
[346905452,1735355437213,-500.0,9.334e-05,2]
[346905453,1735355437222,-292.47,9.334e-05,2]
[346905454,1735355437231,-500.0,9.334e-05,2]
[346905455,1735355437242,-500.0,9.334e-05,2]
[346905456,1735355437251,-500.0,9.334e-05,2]
[346905457,1735355437261,-500.0,9.334e-05,2]
[346905458,1735355437270,-500.0,9.334e-05,2]
[346905459,1735355437280,-322.1854127,9.334e-05,2]
[346905460,1735355437289,-500.0,9.334e-05,2]
[346905461,1735355437298,-500.0,9.334e-05,2]
[346905462,1735355437307,-500.0,9.334e-05,2]
[346905463,1735355437317,-500.0,9.334e-05,2]
[346905464,1735355437326,-500.0,9.334e-05,2]
[346905465,1735355437335,-500.0,9.334e-05,2]
[346905466,1735355437344,-500.0,9.334e-05,2]
[346905467,1735355437353,-500.0,9.334e-05,2]
[346905468,1735355437364,-500.0,9.334e-05,2]
[346905469,1735355437374,-3185.2,9.334e-05,2]
[346905470,1735355437383,-500.0,9.334e-05,2]
[346905471,1735355437392,-500.0,9.334e-05,2]
[346905472,1735355437402,-500.0,9.334e-05,2]
[346905473,1735355437412,-500.0,9.334e-05,2]
[346905474,1735355437420,-500.0,9.334e-05,2]
[346905475,1735355437430,-500.0,9.334e-05,2]
[346905476,1735355437439,-500.0,9.334e-05,2]
[346905477,1735355437448,-500.0,9.334e-05,2]
[346905478,1735355437458,-500.0,9.334e-05,2]
[346905479,1735355437467,-500.0,9.334e-05,2]
[346905480,1735355437478,-500.0,9.334e-05,2]
[346905481,1735355437488,-500.0,9.334e-05,2]
[346905482,1735355437498,-500.0,9.334e-05,2]
[346905483,1735355437508,-423.9327353,9.334e-05,2]
[346905484,1735355437517,-500.0,9.334e-05,2]
[346905485,1735355437526,-500.0,9.334e-05,2]
[346905486,1735355437535,-500.0,9.334e-05,2]
[346905487,1735355437544,-500.0,9.334e-05,2]
[346905488,1735355437553,-500.0,9.334e-05,2]
[346905489,1735355437563,-500.0,9.334e-05,2]
[346905490,1735355437572,-500.0,9.334e-05,2]
[346905491,1735355437581,-1192.33,9.334e-05,2]
[346905492,1735355437591,-500.0,9.335e-05,2]
[346905493,1735355437600,-287.99,9.335e-05,2]
[346905494,1735355437609,-500.0,9.335e-05,2]
[346905495,1735355437619,-153.65776636,9.335e-05,2]
[346905496,1735355437630,-500.0,9.335e-05,2]
[346905497,1735355437641,-227.91,9.335e-05,2]
[346905498,1735355437650,-574.16,9.335e-05,2]
[346905499,1735355437660,-501.60571857,9.335e-05,2]
[346905500,1735355437669,-500.0,9.335e-05,2]
[346905501,1735355437679,-500.0,9.335e-05,2]
[346905502,1735355437688,-500.0,9.335e-05,2]
[346905503,1735355437697,-500.0,9.335e-05,2]
[346905504,1735355437707,-500.0,9.335e-05,2]
[346905505,1735355437716,-564.07,9.335e-05,2]
[346905506,1735355437726,-500.0,9.335e-05,2]
[346905507,1735355437735,-565.27,9.336e-05,2]
[346905508,1735355437744,-565.27,9.336e-05,2]
[346905509,1735355437754,-1234.63,9.336e-05,2]
[346905510,1735355437763,-1234.63,9.336e-05,2]
[346905511,1735355437772,-500.0,9.336e-05,2]
[346905512,1735355437781,-500.0,9.336e-05,2]
[346905513,1735355437791,-500.0,9.336e-05,2]
[346905514,1735355437801,-500.0,9.336e-05,2]
[346905515,1735355437810,-690.0,9.336e-05,2]
[346905516,1735355437820,-400.63628572,9.337e-05,2]
[346905517,1735355437829,-500.0,9.337e-05,2]
[346905518,1735355437839,-500.0,9.337e-05,2]
[346905519,1735355437849,-515.67407444,9.337e-05,2]
[346905520,1735355437858,-596.57262671,9.337e-05,2]
[346905521,1735355437868,-501.98486706,9.337e-05,2]
[346905522,1735355437881,-198.25231518,9.337e-05,2]
[346905523,1735355437891,-565.27,9.337e-05,2]
[346905524,1735355437900,-1234.63,9.337e-05,2]
[346905525,1735355437909,-1146.12,9.337e-05,2]
[346905526,1735355437919,-500.0,9.337e-05,2]
[346905527,1735355437928,-565.27,9.339e-05,2]
[346905528,1735355437938,-1234.63,9.339e-05,2]
[346905529,1735355437948,-1557.94,9.34e-05,2]
[346905530,1735355437958,-32539.2812875,9.508e-05,2]
[346905531,1735355437968,-500.0,9.607e-05,2]
[346905532,1735355437978,-500.0,9.607e-05,2]
[346905533,1735355437988,-1043.35,9.607e-05,2]
[346905534,1735355437998,-851.03,9.607e-05,2]
[346905535,1735355438008,-612.57,9.607e-05,2]
[346905536,1735355438017,-500.0,9.607e-05,2]
[346905537,1735355438027,-183.31238116,9.607e-05,2]
[346905538,1735355438036,-258.25943383,9.607e-05,2]
[346905539,1735355438046,-1047.45,9.607e-05,2]
[346905540,1735355438055,-523.74,9.607e-05,2]
[346905541,1735355438149,-708.08,9.607e-05,2]
[346905542,1735355438159,-296.83692395,9.607e-05,2]
[346905543,1735355438172,-723.9,9.607e-05,2]
[346905544,1735355438182,-500.0,9.607e-05,2]
[346905545,1735355438191,-685.86,9.607e-05,2]
[346905546,1735355438200,-500.0,9.607e-05,2]
[346905547,1735355438211,-506.37,9.607e-05,2]
[346905548,1735355438220,-654.42,9.607e-05,2]
[346905549,1735355438230,-500.0,9.607e-05,2]
[346905550,1735355438241,-500.0,9.607e-05,2]
[346905551,1735355438251,-500.0,9.608e-05,2]
[346905552,1735355438261,-500.0,9.608e-05,2]
[346905553,1735355438270,-1951.78,9.608e-05,2]
[346905554,1735355438280,-500.0,9.608e-05,2]
[346905555,1735355438289,-500.0,9.608e-05,2]
[346905556,1735355438299,-500.0,9.608e-05,2]
[346905557,1735355438309,-500.0,9.608e-05,2]
[346905558,1735355438318,-500.0,9.608e-05,2]
[346905559,1735355438328,-500.0,9.608e-05,2]
[346905560,1735355438338,-503.82,9.608e-05,2]
[346905561,1735355438347,-500.0,9.608e-05,2]
[346905562,1735355438356,-500.0,9.608e-05,2]
[346905563,1735355438366,-500.0,9.608e-05,2]
[346905564,1735355438376,-500.0,9.608e-05,2]
[346905565,1735355438386,-500.0,9.608e-05,2]
[346905566,1735355438395,-500.0,9.608e-05,2]
[346905567,1735355438404,-500.0,9.608e-05,2]
[346905568,1735355438413,-500.0,9.608e-05,2]
[346905569,1735355438423,-556.28,9.608e-05,2]
[346905570,1735355438433,-617.66711792,9.608e-05,2]
[346905571,1735355438442,-500.0,9.608e-05,2]
[346905572,1735355438451,-500.0,9.608e-05,2]
[346905573,1735355438461,-500.0,9.608e-05,2]
[346905574,1735355438470,-500.0,9.608e-05,2]
[346905575,1735355438479,-550.55516662,9.608e-05,2]
[346905576,1735355438489,-500.0,9.608e-05,2]
[346905577,1735355438498,-369.25,9.608e-05,2]
[346905578,1735355438508,-500.0,9.608e-05,2]
[346905579,1735355438517,-500.0,9.608e-05,2]
[346905580,1735355438527,-500.0,9.608e-05,2]
[346905581,1735355438536,-500.0,9.608e-05,2]
[346905582,1735355438546,-500.0,9.608e-05,2]
[346905583,1735355438555,-500.0,9.608e-05,2]
[346905584,1735355438564,-500.0,9.608e-05,2]
[346905585,1735355438574,-381.46252242,9.608e-05,2]
[346905586,1735355438583,-500.0,9.608e-05,2]
[346905587,1735355438592,-500.0,9.608e-05,2]
[346905588,1735355438602,-500.0,9.608e-05,2]
[346905590,1735355438611,-3185.2,9.608e-05,2]
[346905592,1735355438621,-500.0,9.608e-05,2]
[346905594,1735355438630,-500.0,9.608e-05,2]
[346905596,1735355438639,-500.0,9.608e-05,2]
[346905598,1735355438649,-500.0,9.608e-05,2]
[346905600,1735355438658,-500.0,9.608e-05,2]
[346905602,1735355438668,-500.0,9.608e-05,2]
[346905604,1735355438677,-500.0,9.608e-05,2]
[346905605,1735355438688,-500.0,9.608e-05,2]
[346905607,1735355438697,-500.0,9.608e-05,2]
[346905609,1735355438707,-500.0,9.608e-05,2]
[346905611,1735355438716,-500.0,9.608e-05,2]
[346905613,1735355438726,-500.0,9.608e-05,2]
[346905615,1735355438735,-500.0,9.608e-05,2]
[346905617,1735355438745,-500.0,9.608e-05,2]
[346905618,1735355438755,-1192.33,9.608e-05,2]
[346905619,1735355438764,-500.0,9.609e-05,2]
[346905620,1735355438773,-500.0,9.609e-05,2]
[346905621,1735355438783,-500.0,9.609e-05,2]
[346905622,1735355438792,-500.0,9.609e-05,2]
[346905623,1735355438802,-500.0,9.609e-05,2]
[346905624,1735355438811,-500.0,9.609e-05,2]
[346905625,1735355438821,-380.12,9.609e-05,2]
[346905626,1735355438830,-565.27,9.61e-05,2]
[346905627,1735355438840,-565.27,9.61e-05,2]
[346905628,1735355438850,-1234.63,9.61e-05,2]
[346905629,1735355438859,-1234.63,9.61e-05,2]
[346905630,1735355438868,-500.0,9.61e-05,2]
[346905631,1735355438884,-201.66,9.61e-05,2]
[346905632,1735355438894,-500.0,9.61e-05,2]
[346905633,1735355438906,-1146.12,9.611e-05,2]
[346905634,1735355438917,-500.0,9.611e-05,2]
[346905635,1735355438927,-565.27,9.612e-05,2]
[346905636,1735355438936,-565.27,9.612e-05,2]
[346905637,1735355438946,-565.27,9.612e-05,2]
[346905638,1735355438955,-565.27,9.612e-05,2]
[346905639,1735355438965,-1234.63,9.612e-05,2]
[346905640,1735355438974,-1234.63,9.612e-05,2]
[346905641,1735355438983,-1234.63,9.612e-05,2]
[346905642,1735355438992,-1234.63,9.612e-05,2]
[346905643,1735355439002,-1557.94,9.614e-05,2]
[346905644,1735355439011,-500.0,9.784e-05,2]
[346905645,1735355439021,-500.0,9.784e-05,2]
[346905646,1735355439030,-500.0,9.784e-05,2]
[346905647,1735355439039,-500.0,9.784e-05,2]
[346905648,1735355439047,-1043.35,9.881e-05,2]
[346905649,1735355439056,-851.03,9.881e-05,2]
[346905650,1735355439065,-612.57,9.881e-05,2]
[346905651,1735355439074,-500.0,9.881e-05,2]
[346905652,1735355439083,-1047.45,9.881e-05,2]
[346905653,1735355439092,-523.74,9.881e-05,2]
[346905654,1735355439101,-708.08,9.881e-05,2]
[346905655,1735355439110,-723.9,9.881e-05,2]
[346905656,1735355439119,-500.0,9.881e-05,2]
[346905658,1735355439132,-685.86,9.881e-05,2]
[346905660,1735355439142,-230.24235416,9.881e-05,2]
[346905662,1735355439151,-506.37,9.881e-05,2]
[346905664,1735355439166,-654.42,9.881e-05,2]
[346905666,1735355439175,-500.0,9.881e-05,2]
[346905667,1735355439185,-616.13027984,9.881e-05,2]
[346905668,1735355439194,-500.0,9.882e-05,2]
[346905669,1735355439204,-1951.78,9.882e-05,2]
[346905670,1735355439214,-500.0,9.882e-05,2]
[346905671,1735355439223,-500.0,9.882e-05,2]
[346905672,1735355439232,-500.0,9.882e-05,2]
[346905673,1735355439244,-500.0,9.882e-05,2]
[346905674,1735355439254,-500.0,9.882e-05,2]
[346905675,1735355439264,-500.0,9.882e-05,2]
[346905676,1735355439273,-255.25,9.882e-05,2]
[346905677,1735355439282,-365.13,9.882e-05,2]
[346905678,1735355439292,-500.0,9.882e-05,2]
[346905679,1735355439301,-500.0,9.882e-05,2]
[346905680,1735355439311,-500.0,9.882e-05,2]
[346905681,1735355439320,-500.0,9.882e-05,2]
[346905682,1735355439331,-403.35,9.882e-05,2]
[346905683,1735355439341,-500.0,9.882e-05,2]
[346905684,1735355439350,-500.0,9.882e-05,2]
[346905685,1735355439359,-500.0,9.882e-05,2]
[346905686,1735355439368,-500.0,9.882e-05,2]
[346905687,1735355439379,-500.0,9.882e-05,2]
[346905688,1735355439389,-500.0,9.882e-05,2]
[346905689,1735355439398,-198.19,9.882e-05,2]
[346905690,1735355439407,-500.0,9.882e-05,2]
[346905691,1735355439416,-500.0,9.882e-05,2]
[346905692,1735355439427,-500.0,9.882e-05,2]
[346905693,1735355439437,-3185.2,9.882e-05,2]
[346905694,1735355439447,-342.44,9.882e-05,2]
[346905695,1735355439457,-500.0,9.882e-05,2]
[346905696,1735355439473,-500.0,9.882e-05,2]
[346905697,1735355439483,-500.0,9.882e-05,2]
[346905698,1735355439492,-500.0,9.882e-05,2]
[346905699,1735355439503,-500.0,9.882e-05,2]
[346905700,1735355439512,-500.0,9.882e-05,2]
[346905701,1735355439521,-500.0,9.882e-05,2]
[346905702,1735355439531,-500.0,9.882e-05,2]
[346905703,1735355439539,-500.0,9.882e-05,2]
[346905704,1735355439551,-500.0,9.882e-05,2]
[346905705,1735355439560,-500.0,9.882e-05,2]
[346905706,1735355439570,-1192.33,9.882e-05,2]
[346905707,1735355439579,-500.0,9.883e-05,2]
[346905708,1735355439589,-500.0,9.883e-05,2]
[346905709,1735355439598,-565.27,9.884e-05,2]
[346905710,1735355439607,-1234.63,9.884e-05,2]
[346905711,1735355439617,-500.0,9.884e-05,2]
[346905712,1735355439628,-500.0,9.884e-05,2]
[346905713,1735355439637,-565.27,9.885e-05,2]
[346905714,1735355439646,-565.27,9.885e-05,2]
[346905715,1735355439656,-565.27,9.885e-05,2]
[346905716,1735355439666,-565.27,9.885e-05,2]
[346905717,1735355439676,-565.4309155,9.885e-05,2]
[346905718,1735355439686,-1234.63,9.885e-05,2]
[346905719,1735355439696,-1234.63,9.885e-05,2]
[346905720,1735355439706,-1234.63,9.885e-05,2]
[346905721,1735355439717,-1234.63,9.885e-05,2]
[346905722,1735355439726,-1234.73164456,9.885e-05,2]
[346905723,1735355439737,-1146.12,9.885e-05,2]
[346905724,1735355439748,-500.0,9.885e-05,2]
[346905725,1735355439757,-1557.94,9.888e-05,2]
[346905726,1735355439767,-420.0,9.965e-05,2]
[346905727,1735355439776,-182.92065015,9.989e-05,2]
[346905728,1735355439786,-500.0,0.00010155,2]
[346905729,1735355439795,-500.0,0.00010155,2]
[346905730,1735355439804,-1043.35,0.00010155,2]
[346905731,1735355439814,-851.03,0.00010155,2]
[346905732,1735355439824,-612.57,0.00010155,2]
[346905733,1735355439833,-500.0,0.00010155,2]
[346905734,1735355439842,-1047.45,0.00010155,2]
[346905735,1735355439851,-523.74,0.00010155,2]
[346905736,1735355439861,-708.08,0.00010155,2]
[346905737,1735355439870,-723.9,0.00010155,2]
[346905738,1735355439880,-500.0,0.00010155,2]
[346905739,1735355439889,-685.86,0.00010155,2]
[346905740,1735355439899,-506.37,0.00010155,2]
[346905741,1735355439909,-654.42,0.00010155,2]
[346905742,1735355439918,-500.0,0.00010155,2]
[346905743,1735355439928,-300.31,0.00010156,2]
[346905744,1735355439938,-1951.78,0.00010156,2]
[346905745,1735355439947,-448.8,0.00010156,2]
[346905746,1735355439956,-500.0,0.00010156,2]
[346905747,1735355439965,-193.21734355,0.00010156,2]
[346905748,1735355439975,-500.0,0.00010156,2]
[346905749,1735355439984,-373.97,0.00010156,2]
[346905750,1735355439993,-500.0,0.00010156,2]
[346905751,1735355440002,-500.0,0.00010156,2]
[346905752,1735355440012,-500.0,0.00010156,2]
[346905753,1735355440021,-500.0,0.00010156,2]
[346905754,1735355440031,-500.0,0.00010156,2]
[346905755,1735355440040,-500.0,0.00010156,2]
[346905756,1735355440049,-500.0,0.00010156,2]
[346905757,1735355440059,-500.0,0.00010156,2]
[346905758,1735355440069,-500.0,0.00010156,2]
[346905759,1735355440079,-500.0,0.00010156,2]
[346905760,1735355440088,-541.33,0.00010156,2]
[346905761,1735355440098,-500.0,0.00010156,2]
[346905762,1735355440107,-3185.2,0.00010156,2]
[346905763,1735355440116,-500.0,0.00010156,2]
[346905764,1735355440128,-500.0,0.00010156,2]
[346905765,1735355440138,-277.34,0.00010156,2]
[346905766,1735355440147,-500.0,0.00010156,2]
[346905767,1735355440158,-182.2601854,0.00010156,2]
[346905768,1735355440172,-500.0,0.00010156,2]
[346905769,1735355440182,-500.0,0.00010156,2]
[346905770,1735355440191,-500.0,0.00010156,2]
[346905771,1735355440200,-500.0,0.00010156,2]
[346905772,1735355440214,-1192.33,0.00010156,2]
[346905773,1735355440224,-500.0,0.00010157,2]
[346905774,1735355440233,-500.0,0.00010157,2]
[346905775,1735355440243,-500.0,0.00010158,2]
[346905776,1735355440255,-1146.12,0.00010159,2]
[346905777,1735355440264,-500.0,0.00010159,2]
[346905778,1735355440274,-1557.94,0.00010162,2]
[346905779,1735355440283,-500.0,0.00010429,2]
[346905780,1735355440292,-500.0,0.00010429,2]
[346905781,1735355440377,-1043.35,0.00010429,2]
[346905782,1735355440387,-851.03,0.00010429,2]
[346905783,1735355440397,-612.57,0.00010429,2]
[346905784,1735355440406,-500.0,0.00010429,2]
[346905785,1735355440416,-1047.45,0.00010429,2]
[346905787,1735355440426,-523.74,0.00010429,2]
[346905789,1735355440435,-708.08,0.00010429,2]
[346905791,1735355440445,-723.9,0.00010429,2]
[346905792,1735355440454,-500.0,0.00010429,2]
[346905793,1735355440463,-685.86,0.00010429,2]
[346905794,1735355440473,-506.37,0.00010429,2]
[346905795,1735355440482,-654.42,0.00010429,2]
[346905796,1735355440491,-500.0,0.00010429,2]
[346905797,1735355440500,-1951.78,0.0001043,2]
[346905798,1735355440510,-439.828972,0.0001043,2]
[346905799,1735355440519,-500.0,0.0001043,2]
[346905800,1735355440529,-500.0,0.0001043,2]
[346905801,1735355440538,-500.0,0.0001043,2]
[346905802,1735355440548,-168.52,0.0001043,2]
[346905803,1735355440557,-500.0,0.0001043,2]
[346905804,1735355440567,-500.0,0.0001043,2]
[346905805,1735355440578,-500.0,0.0001043,2]
[346905806,1735355440587,-500.0,0.0001043,2]
[346905807,1735355440596,-500.0,0.0001043,2]
[346905808,1735355440605,-500.0,0.0001043,2]
[346905809,1735355440615,-500.0,0.0001043,2]
[346905810,1735355440626,-500.0,0.0001043,2]
[346905811,1735355440635,-3185.2,0.0001043,2]
[346905812,1735355440644,-500.0,0.0001043,2]